[Event "Live Chess"]
[Site "Chess.com"]
[Date "2024.06.01"]
[Round "-"]
[White "ACM42"]
[Black "FlyingChessKestrel13"]
[Result "1-0"]
[WhiteElo "2209"]
[BlackElo "2103"]
[TimeControl "300"]
[EndTime "10:52:14 PDT"]
[Termination "ACM42 won by resignation"]

1. e4 {[%clk 0:04:58.5]} 1... c5 {[%clk 0:04:57.7]} 2. Nf3 {[%clk 0:04:57.4]}
2... Nc6 {[%clk 0:04:56.7]} 3. d4 {[%clk 0:04:54.2]} 3... cxd4 {[%clk 0:04:56]}
4. Nxd4 {[%clk 0:04:51.2]} 4... Nf6 {[%clk 0:04:55.2]} 5. Nc3 {[%clk 0:04:48.1]}
5... e5 {[%clk 0:04:54.1]} 6. Ndb5 {[%clk 0:04:46]} 6... d6 {[%clk 0:04:53.7]}
7. Bg5 {[%clk 0:04:37.9]} 7... a6 {[%clk 0:04:50.8]} 8. Na3 {[%clk 0:04:34.4]}
8... b5 {[%clk 0:04:49.9]} 9. Bxf6 {[%clk 0:04:31]} 9... gxf6 {[%clk 0:04:48.6]}
10. Nd5 {[%clk 0:04:30.2]} 10... Bg7 {[%clk 0:04:46.8]} 11. c4 {[%clk
0:04:28.1]} 11... b4 {[%clk 0:04:44.1]} 12. Nc2 {[%clk 0:04:26.8]} 12... a5
{[%clk 0:04:43.3]} 13. b3 {[%clk 0:04:26.1]} 13... Be6 {[%clk 0:04:41.8]} 14.
Qh5 {[%clk 0:04:21.8]} 14... Bxd5 {[%clk 0:04:38.6]} 15. cxd5 {[%clk 0:04:16.3]}
15... Ne7 {[%clk 0:04:37.6]} 16. Bd3 {[%clk 0:04:09.5]} 16... Ng6 {[%clk
0:04:36.5]} 17. g3 {[%clk 0:04:06.2]} 17... Rc8 {[%clk 0:04:35.2]} 18. Bc4
{[%clk 0:04:00.3]} 18... Qb6 {[%clk 0:04:30.1]} 19. O-O {[%clk 0:03:55.9]} 19...
O-O {[%clk 0:04:26.4]} 20. Rad1 {[%clk 0:03:44]} 20... Kh8 {[%clk 0:04:23.3]}
21. Ne3 {[%clk 0:03:42.2]} 21... Ne7 {[%clk 0:04:21.3]} 22. h4 {[%clk
0:03:33.8]} 22... Rg8 {[%clk 0:04:19.2]} 23. Qxf7 {[%clk 0:03:23]} 23... Qc7
{[%clk 0:04:13.1]} 24. Kh2 {[%clk 0:03:16.7]} 24... Rcf8 {[%clk 0:04:11.5]} 25.
Qh5 {[%clk 0:03:15]} 25... Qd7 {[%clk 0:04:08]} 26. Bd3 {[%clk 0:03:08.2]} 26...
f5 {[%clk 0:04:02]} 27. exf5 {[%clk 0:03:01.7]} 27... Rf6 {[%clk 0:04:01.5]} 28.
Ng4 {[%clk 0:02:45.3]} 28... Rf7 {[%clk 0:03:53.1]} 29. f6 {[%clk 0:02:39.8]}
29... Ng6 {[%clk 0:03:36.9]} 30. Bxg6 {[%clk 0:02:36.6]} 30... Bxf6 {[%clk
0:03:28.2]} 31. Bxf7 {[%clk 0:02:34.2]} 31... Rxg4 {[%clk 0:03:28.1]} 32. Be6
{[%clk 0:02:30.6]} 1-0

[Event "Live Chess"]
[Site "Chess.com"]
[Date "2024.06.01"]
[Round "-"]
[White "WilliamofOrange16th"]
[Black "MellowAesthetic"]
[Result "0-1"]
[WhiteElo "1937"]
[BlackElo "2058"]
[TimeControl "300"]
[EndTime "10:52:22 PDT"]
[Termination "MellowAesthetic won by resignation"]

1. e4 {[%clk 0:04:58.9]} 1... c5 {[%clk 0:04:58.3]} 2. Nc3 {[%clk 0:04:56.8]}
2... Nc6 {[%clk 0:04:57]} 3. g3 {[%clk 0:04:56]} 3... g6 {[%clk 0:04:56.4]} 4.
Bg2 {[%clk 0:04:55.8]} 4... Bg7 {[%clk 0:04:55.8]} 5. d3 {[%clk 0:04:55.1]} 5...
d6 {[%clk 0:04:54.1]} 6. Be3 {[%clk 0:04:54.3]} 6... e6 {[%clk 0:04:52.9]} 7.
Qd2 {[%clk 0:04:53.7]} 7... Rb8 {[%clk 0:04:51.2]} 8. f4 {[%clk 0:04:48.9]} 8...
Nge7 {[%clk 0:04:47.3]} 9. Nf3 {[%clk 0:04:47.8]} 9... O-O {[%clk 0:04:45]} 10.
O-O-O {[%clk 0:04:44.8]} 10... b5 {[%clk 0:04:41.7]} 11. h4 {[%clk 0:04:39.9]}
11... Qa5 {[%clk 0:04:10.2]} 12. e5 {[%clk 0:04:20.1]} 12... b4 {[%clk
0:04:04.2]} 13. Nb1 {[%clk 0:04:18.2]} 13... Qxa2 {[%clk 0:04:02.3]} 14. h5
{[%clk 0:04:12.5]} 14... dxe5 {[%clk 0:03:55.7]} 15. hxg6 {[%clk 0:04:04.5]}
15... exf4 {[%clk 0:03:52.5]} 16. gxh7+ {[%clk 0:03:59]} 16... Kh8 {[%clk
0:03:51.4]} 17. d4 {[%clk 0:03:52.6]} 17... fxe3 {[%clk 0:03:49.1]} 18. Qxe3
{[%clk 0:03:52]} 18... Nxd4 {[%clk 0:03:21.3]} 0-1

[Event "Live Chess"]
[Site "Chess.com"]
[Date "2024.06.01"]
[Round "-"]
[White "educatedlad"]
[Black "RomanKifliuk"]
[Result "0-1"]
[WhiteElo "1758"]
[BlackElo "2355"]
[TimeControl "300"]
[EndTime "10:52:38 PDT"]
[Termination "RomanKifliuk won by checkmate"]

1. d4 {[%clk 0:04:56.9]} 1... c5 {[%clk 0:04:58.5]} 2. d5 {[%clk 0:04:55.4]}
2... e5 {[%clk 0:04:57.1]} 3. e4 {[%clk 0:04:54.6]} 3... d6 {[%clk 0:04:55.7]}
4. Nc3 {[%clk 0:04:53.9]} 4... Ne7 {[%clk 0:04:54.3]} 5. Bg5 {[%clk 0:04:51.6]}
5... Qb6 {[%clk 0:04:50.2]} 6. Bb5+ {[%clk 0:04:44.4]} 6... Nd7 {[%clk
0:04:45.8]} 7. Nf3 {[%clk 0:04:31.2]} 7... a6 {[%clk 0:04:44.3]} 8. Bxd7+ {[%clk
0:04:26.5]} 8... Bxd7 {[%clk 0:04:44.2]} 9. Qd2 {[%clk 0:04:25.3]} 9... Ng6
{[%clk 0:04:37.3]} 10. h4 {[%clk 0:04:22.9]} 10... f5 {[%clk 0:04:23]} 11. h5
{[%clk 0:04:18.6]} 11... Ne7 {[%clk 0:04:16.5]} 12. O-O {[%clk 0:03:55.9]} 12...
h6 {[%clk 0:04:12.4]} 13. Bxe7 {[%clk 0:03:51.8]} 13... Bxe7 {[%clk 0:04:11.7]}
14. exf5 {[%clk 0:03:37.9]} 14... Bxf5 {[%clk 0:04:09.9]} 15. Rfe1 {[%clk
0:03:32]} 15... O-O {[%clk 0:04:06.6]} 16. Na4 {[%clk 0:03:17.5]} 16... Qb5
{[%clk 0:04:01.8]} 17. b3 {[%clk 0:03:13.3]} 17... Bg4 {[%clk 0:03:42.6]} 18. c4
{[%clk 0:03:09.8]} 18... Qe8 {[%clk 0:03:38.8]} 19. Nxe5 {[%clk 0:03:02.5]}
19... dxe5 {[%clk 0:03:27.8]} 20. Rxe5 {[%clk 0:03:00.9]} 20... Qf7 {[%clk
0:03:23.8]} 21. Qe3 {[%clk 0:02:52.2]} 21... Bf6 {[%clk 0:03:21.5]} 22. Re4
{[%clk 0:02:37.1]} 22... Bxa1 {[%clk 0:03:18.5]} 23. Rxg4 {[%clk 0:02:35]} 23...
Bd4 {[%clk 0:03:16]} 24. Qxh6 {[%clk 0:02:31.2]} 24... Qxf2+ {[%clk 0:03:00.2]}
25. Kh2 {[%clk 0:02:28.7]} 25... Qg1+ {[%clk 0:02:58.7]} 26. Kh3 {[%clk
0:02:27.7]} 26... Qh1+ {[%clk 0:02:56.9]} 27. Kg3 {[%clk 0:02:26.4]} 27... Bf2#
{[%clk 0:02:54.9]} 0-1

[Event "Live Chess"]
[Site "Chess.com"]
[Date "2024.06.01"]
[Round "-"]
[White "KwikPhoenix"]
[Black "f4nomore"]
[Result "1-0"]
[WhiteElo "2458"]
[BlackElo "1202"]
[TimeControl "300"]
[EndTime "10:52:40 PDT"]
[Termination "KwikPhoenix won by resignation"]

1. e4 {[%clk 0:04:59]} 1... g6 {[%clk 0:04:59.9]} 2. d4 {[%clk 0:04:58.3]} 2...
Bg7 {[%clk 0:04:59.8]} 3. f4 {[%clk 0:04:57.9]} 3... d6 {[%clk 0:04:59.5]} 4.
Nf3 {[%clk 0:04:57.3]} 4... Nf6 {[%clk 0:04:57.9]} 5. e5 {[%clk 0:04:56.4]} 5...
dxe5 {[%clk 0:04:56.2]} 6. fxe5 {[%clk 0:04:56.3]} 6... Nd5 {[%clk 0:04:54.2]}
7. c3 {[%clk 0:04:54.3]} 7... O-O {[%clk 0:04:52.2]} 8. Bc4 {[%clk 0:04:53.6]}
8... e6 {[%clk 0:04:50.5]} 9. O-O {[%clk 0:04:52.5]} 9... c6 {[%clk 0:04:49.6]}
10. Bg5 {[%clk 0:04:51.2]} 10... Qe8 {[%clk 0:04:47.5]} 11. Qc1 {[%clk
0:04:48.6]} 11... Nd7 {[%clk 0:04:45.1]} 12. Bh6 {[%clk 0:04:48]} 12... c5
{[%clk 0:04:44]} 13. Na3 {[%clk 0:04:46]} 13... cxd4 {[%clk 0:04:42.1]} 14. cxd4
{[%clk 0:04:45.9]} 14... a6 {[%clk 0:04:39.5]} 15. Bxd5 {[%clk 0:04:41.7]} 15...
exd5 {[%clk 0:04:37.3]} 16. Bxg7 {[%clk 0:04:40.2]} 16... Kxg7 {[%clk
0:04:35.5]} 17. Qg5 {[%clk 0:04:39.1]} 17... f6 {[%clk 0:04:31.5]} 18. exf6+
{[%clk 0:04:37.7]} 18... Nxf6 {[%clk 0:04:27.8]} 19. Ne5 {[%clk 0:04:32]} 19...
h6 {[%clk 0:04:17.2]} 20. Qh4 {[%clk 0:04:24.7]} 20... g5 {[%clk 0:04:11.7]} 21.
Qe1 {[%clk 0:04:19.9]} 21... Qd8 {[%clk 0:03:57.8]} 22. Qb1 {[%clk 0:04:14.9]}
22... Ne4 {[%clk 0:03:51.5]} 23. Rxf8 {[%clk 0:03:56]} 23... Qxf8 {[%clk
0:03:49]} 24. Qf1 {[%clk 0:03:51.5]} 24... Bf5 {[%clk 0:03:38.7]} 25. Rc1 {[%clk
0:03:38.4]} 25... Re8 {[%clk 0:03:02.1]} 26. Rc7+ {[%clk 0:03:35.1]} 26... Kg8
{[%clk 0:02:47.1]} 27. Rxb7 {[%clk 0:03:26.2]} 27... Bh7 {[%clk 0:02:31.3]} 28.
Qxf8+ {[%clk 0:03:20.8]} 28... Rxf8 {[%clk 0:02:29.8]} 29. Rd7 {[%clk
0:03:08.6]} 29... Nd2 {[%clk 0:02:25.4]} 30. h3 {[%clk 0:03:04.5]} 30... Rf1+
{[%clk 0:02:21.1]} 31. Kh2 {[%clk 0:03:04.1]} 31... Be4 {[%clk 0:02:14.2]} 32.
Rd8+ {[%clk 0:02:59.5]} 32... Kg7 {[%clk 0:02:12.1]} 33. Rd7+ {[%clk 0:02:58.7]}
33... Kf6 {[%clk 0:02:10.1]} 34. Rf7+ {[%clk 0:02:57.9]} 34... Ke6 {[%clk
0:02:04.7]} 35. Rxf1 {[%clk 0:02:56.8]} 35... Nxf1+ {[%clk 0:02:02.6]} 36. Kg1
{[%clk 0:02:56.7]} 36... Ne3 {[%clk 0:02:00.5]} 37. Nf3 {[%clk 0:02:51.9]} 37...
Kf5 {[%clk 0:01:53.4]} 38. b4 {[%clk 0:02:41]} 38... h5 {[%clk 0:01:51.6]} 39.
b5 {[%clk 0:02:38.6]} 39... axb5 {[%clk 0:01:49.7]} 40. Nxb5 {[%clk 0:02:38.5]}
40... g4 {[%clk 0:01:48]} 41. hxg4+ {[%clk 0:02:37.8]} 41... hxg4 {[%clk
0:01:46.2]} 42. Ne1 {[%clk 0:02:35.6]} 42... Nc4 {[%clk 0:01:38.4]} 43. a4
{[%clk 0:02:30.3]} 43... Na5 {[%clk 0:01:35.5]} 44. Kf2 {[%clk 0:02:25.5]} 44...
Kf4 {[%clk 0:01:31.9]} 45. g3+ {[%clk 0:02:22.7]} 45... Kf5 {[%clk 0:01:28.2]}
46. Nd6+ {[%clk 0:02:19.9]} 46... Ke6 {[%clk 0:01:24.7]} 47. Nxe4 {[%clk
0:02:18.4]} 47... dxe4 {[%clk 0:01:23.3]} 48. Nc2 {[%clk 0:02:16.6]} 48... Kd5
{[%clk 0:01:21.1]} 49. Ke3 {[%clk 0:02:14.4]} 49... Nc4+ {[%clk 0:01:17.6]} 50.
Kf4 {[%clk 0:02:13]} 50... Nd6 {[%clk 0:00:59.2]} 51. Kxg4 {[%clk 0:01:55.7]}
51... e3 {[%clk 0:00:56.7]} 52. Kf3 {[%clk 0:01:50.9]} 52... Nf5 {[%clk
0:00:51.3]} 53. g4 {[%clk 0:01:45.9]} 53... Nxd4+ {[%clk 0:00:34.9]} 54. Nxd4
{[%clk 0:01:45.8]} 54... Kxd4 {[%clk 0:00:33.7]} 55. Ke2 {[%clk 0:01:45.5]}
55... Ke4 {[%clk 0:00:31.5]} 56. a5 {[%clk 0:01:43.4]} 1-0

[Event "Live Chess"]
[Site "Chess.com"]
[Date "2024.06.01"]
[Round "-"]
[White "KeithArkell"]
[Black "Mikhail_Golubev"]
[Result "1/2-1/2"]
[WhiteElo "2517"]
[BlackElo "2602"]
[TimeControl "300"]
[EndTime "10:52:44 PDT"]
[Termination "Game drawn by repetition"]

1. d4 {[%clk 0:04:57.7]} 1... Nf6 {[%clk 0:04:58.3]} 2. Nf3 {[%clk 0:04:57.1]}
2... d6 {[%clk 0:04:57.2]} 3. c4 {[%clk 0:04:56.3]} 3... g6 {[%clk 0:04:55.8]}
4. g3 {[%clk 0:04:55.7]} 4... Bg7 {[%clk 0:04:55.1]} 5. Bg2 {[%clk 0:04:55.2]}
5... O-O {[%clk 0:04:54.3]} 6. Nc3 {[%clk 0:04:51]} 6... c5 {[%clk 0:04:52.3]}
7. dxc5 {[%clk 0:04:49.8]} 7... dxc5 {[%clk 0:04:50.2]} 8. O-O {[%clk
0:04:48.8]} 8... Nc6 {[%clk 0:04:46]} 9. Bf4 {[%clk 0:04:47.8]} 9... Nh5 {[%clk
0:04:31.9]} 10. Be3 {[%clk 0:04:46.3]} 10... Be6 {[%clk 0:04:05.3]} 11. Nd5
{[%clk 0:04:39.3]} 11... Bxb2 {[%clk 0:03:05.6]} 12. Rb1 {[%clk 0:04:37.5]}
12... Bg7 {[%clk 0:03:02.9]} 13. Bxc5 {[%clk 0:04:29.7]} 13... b6 {[%clk
0:02:53.6]} 14. Nxe7+ {[%clk 0:04:26.4]} 14... Nxe7 {[%clk 0:02:52]} 15. Qxd8
{[%clk 0:04:25.4]} 15... Rfxd8 {[%clk 0:02:51.4]} 16. Bxe7 {[%clk 0:04:24.6]}
16... Re8 {[%clk 0:02:47.2]} 17. Ng5 {[%clk 0:04:21.5]} 17... Rac8 {[%clk
0:02:26.5]} 18. Nxe6 {[%clk 0:04:20.4]} 18... Rxe7 {[%clk 0:02:23.3]} 19. Nxg7
{[%clk 0:04:19.4]} 19... Kxg7 {[%clk 0:02:09.3]} 20. Bf3 {[%clk 0:03:52.2]}
20... Rxc4 {[%clk 0:02:06.9]} 21. Bxh5 {[%clk 0:03:51.3]} 21... gxh5 {[%clk
0:02:06.5]} 22. Rb2 {[%clk 0:03:50.6]} 22... Rd7 {[%clk 0:02:02]} 23. Rfb1
{[%clk 0:03:44.6]} 23... h4 {[%clk 0:01:59.2]} 24. Kg2 {[%clk 0:03:43.7]} 24...
h5 {[%clk 0:01:51.4]} 25. Rb5 {[%clk 0:03:39.9]} 25... hxg3 {[%clk 0:01:47.9]}
26. hxg3 {[%clk 0:03:39]} 26... h4 {[%clk 0:01:45.3]} 27. gxh4 {[%clk
0:03:38.1]} 27... Rxh4 {[%clk 0:01:43.1]} 28. e3 {[%clk 0:03:31.8]} 28... Kf6
{[%clk 0:01:38.6]} 29. R1b4 {[%clk 0:03:30.5]} 29... Rxb4 {[%clk 0:01:36.9]} 30.
Rxb4 {[%clk 0:03:30.4]} 30... Rd6 {[%clk 0:01:34.3]} 31. a4 {[%clk 0:03:29]}
31... a5 {[%clk 0:01:31.7]} 32. Rh4 {[%clk 0:03:26.9]} 32... Ke6 {[%clk
0:01:27.9]} 33. Kf3 {[%clk 0:03:21.2]} 33... Kd5 {[%clk 0:01:18.6]} 34. Rh5+
{[%clk 0:03:02.6]} 34... Kc6 {[%clk 0:01:09.2]} 35. Ke4 {[%clk 0:03:01.1]} 35...
Rd2 {[%clk 0:01:00.4]} 36. Rf5 {[%clk 0:02:58.6]} 36... Ra2 {[%clk 0:00:56.9]}
37. Rxf7 {[%clk 0:02:56.3]} 37... Rxa4+ {[%clk 0:00:55.5]} 38. Ke5 {[%clk
0:02:55.8]} 38... b5 {[%clk 0:00:44.6]} 39. f4 {[%clk 0:02:54.2]} 39... b4
{[%clk 0:00:43.8]} 40. Rf6+ {[%clk 0:02:47.6]} 40... Kc7 {[%clk 0:00:42.5]} 41.
Rf7+ {[%clk 0:02:27.3]} 41... Kc6 {[%clk 0:00:41.4]} 42. Rf6+ {[%clk 0:02:26.8]}
42... Kc7 {[%clk 0:00:40.7]} 43. Rf7+ {[%clk 0:02:26.4]} 43... Kc6 {[%clk
0:00:40.3]} 1/2-1/2

[Event "Live Chess"]
[Site "Chess.com"]
[Date "2024.06.01"]
[Round "-"]
[White "Larchikov"]
[Black "Dhaydon19"]
[Result "1-0"]
[WhiteElo "2126"]
[BlackElo "2673"]
[TimeControl "300"]
[EndTime "10:52:48 PDT"]
[Termination "Larchikov won by checkmate"]

1. d4 {[%clk 0:04:55.1]} 1... e6 {[%clk 0:04:59.1]} 2. c4 {[%clk 0:04:54.1]}
2... d5 {[%clk 0:04:58]} 3. Nc3 {[%clk 0:04:52.5]} 3... dxc4 {[%clk 0:04:56.4]}
4. Nf3 {[%clk 0:04:50.4]} 4... Nf6 {[%clk 0:04:55.1]} 5. e3 {[%clk 0:04:48.3]}
5... a6 {[%clk 0:04:54.3]} 6. a4 {[%clk 0:04:46.4]} 6... b6 {[%clk 0:04:52.9]}
7. Bxc4 {[%clk 0:04:44.9]} 7... Bb7 {[%clk 0:04:52.5]} 8. O-O {[%clk 0:04:43.5]}
8... Be7 {[%clk 0:04:52.1]} 9. Qe2 {[%clk 0:04:42.1]} 9... O-O {[%clk
0:04:51.2]} 10. e4 {[%clk 0:04:40.2]} 10... Nc6 {[%clk 0:04:50.5]} 11. Rd1
{[%clk 0:04:37.8]} 11... Nb4 {[%clk 0:04:48.1]} 12. Bf4 {[%clk 0:04:33.7]} 12...
c6 {[%clk 0:04:44.2]} 13. h3 {[%clk 0:04:16.2]} 13... b5 {[%clk 0:04:41.8]} 14.
axb5 {[%clk 0:04:14.6]} 14... cxb5 {[%clk 0:04:37.5]} 15. Bb3 {[%clk 0:04:09.1]}
15... Rc8 {[%clk 0:04:35.5]} 16. Ne5 {[%clk 0:04:05.1]} 16... Qb6 {[%clk
0:04:26.8]} 17. g4 {[%clk 0:03:58.8]} 17... Rfd8 {[%clk 0:04:23.3]} 18. g5
{[%clk 0:03:55.7]} 18... Nd7 {[%clk 0:04:22]} 19. Nf3 {[%clk 0:03:23.7]} 19...
Nf8 {[%clk 0:04:19.1]} 20. h4 {[%clk 0:03:19.3]} 20... Bd6 {[%clk 0:04:16.8]}
21. Be3 {[%clk 0:03:14.8]} 21... Qc7 {[%clk 0:04:14.2]} 22. Rac1 {[%clk
0:03:10.7]} 22... Qb8 {[%clk 0:04:11.1]} 23. h5 {[%clk 0:03:00.5]} 23... Bf4
{[%clk 0:04:08.1]} 24. Qd2 {[%clk 0:02:55.1]} 24... Bxe3 {[%clk 0:04:06.5]} 25.
Qxe3 {[%clk 0:02:55]} 25... Nd7 {[%clk 0:04:01.1]} 26. h6 {[%clk 0:02:51]} 26...
g6 {[%clk 0:03:59.3]} 27. Nh2 {[%clk 0:02:45.2]} 27... Qd6 {[%clk 0:03:54.6]}
28. Ng4 {[%clk 0:02:40.4]} 28... Qe7 {[%clk 0:03:53.6]} 29. f4 {[%clk
0:02:28.3]} 29... Rc7 {[%clk 0:03:48.8]} 30. Nd5 {[%clk 0:02:21.6]} 30... Nxd5
{[%clk 0:03:44.2]} 31. exd5 {[%clk 0:02:15.3]} 31... Rxc1 {[%clk 0:03:38.8]} 32.
Rxc1 {[%clk 0:02:15.2]} 32... Kf8 {[%clk 0:03:27]} 33. dxe6 {[%clk 0:02:04.6]}
33... fxe6 {[%clk 0:03:26]} 34. Rc7 {[%clk 0:01:23]} 34... Bd5 {[%clk
0:03:22.9]} 35. Bxd5 {[%clk 0:01:11.7]} 35... exd5 {[%clk 0:03:21.5]} 36. Qxe7+
{[%clk 0:01:06.6]} 36... Kxe7 {[%clk 0:03:21.1]} 37. Ne5 {[%clk 0:01:05.6]}
37... Ke6 {[%clk 0:03:15.7]} 38. Rc6+ {[%clk 0:01:04.5]} 38... Kf5 {[%clk
0:03:14.3]} 39. Rd6 {[%clk 0:00:50]} 39... Nxe5 {[%clk 0:03:12.3]} 40. Rxd8
{[%clk 0:00:48.4]} 40... Nd3 {[%clk 0:03:09.4]} 41. Rxd5+ {[%clk 0:00:45.5]}
41... Kxf4 {[%clk 0:03:07.9]} 42. Rd7 {[%clk 0:00:43.5]} 42... Kxg5 {[%clk
0:03:04]} 43. Rxh7 {[%clk 0:00:41.4]} 43... Nxb2 {[%clk 0:03:02.9]} 44. d5
{[%clk 0:00:38.4]} 44... Nc4 {[%clk 0:03:01.9]} 45. d6 {[%clk 0:00:28.7]} 45...
Nxd6 {[%clk 0:02:47.3]} 46. Rd7 {[%clk 0:00:27]} 46... Ne8 {[%clk 0:02:45.9]}
47. h7 {[%clk 0:00:21.3]} 47... Nf6 {[%clk 0:02:45.4]} 48. h8=Q {[%clk
0:00:19.2]} 48... Nxd7 {[%clk 0:02:44.2]} 49. Qd4 {[%clk 0:00:17.2]} 49... Nf8
{[%clk 0:02:37.1]} 50. Qc5+ {[%clk 0:00:16.3]} 50... Kf4 {[%clk 0:02:33.9]} 51.
Qxf8+ {[%clk 0:00:16.2]} 51... Ke5 {[%clk 0:02:32.9]} 52. Qa8 {[%clk 0:00:15.8]}
52... Kd4 {[%clk 0:02:32.2]} 53. Qxa6 {[%clk 0:00:15.2]} 53... Kc4 {[%clk
0:02:31.9]} 54. Qxg6 {[%clk 0:00:14.6]} 54... b4 {[%clk 0:02:31.3]} 55. Qb1
{[%clk 0:00:14.3]} 55... Kc3 {[%clk 0:02:30.5]} 56. Kf2 {[%clk 0:00:14.2]} 56...
b3 {[%clk 0:02:30.1]} 57. Ke3 {[%clk 0:00:14]} 57... b2 {[%clk 0:02:29.8]} 58.
Qd3+ {[%clk 0:00:12.5]} 58... Kb4 {[%clk 0:02:28.8]} 59. Kd2 {[%clk 0:00:11.5]}
59... b1=Q {[%clk 0:02:27.9]} 60. Qxb1+ {[%clk 0:00:10.9]} 60... Ka3 {[%clk
0:02:25.9]} 61. Kc3 {[%clk 0:00:10.2]} 61... Ka4 {[%clk 0:02:25.4]} 62. Qb4#
{[%clk 0:00:08.8]} 1-0

[Event "Live Chess"]
[Site "Chess.com"]
[Date "2024.06.01"]
[Round "-"]
[White "Bob2pen"]
[Black "viktor_forever1994"]
[Result "1-0"]
[WhiteElo "1860"]
[BlackElo "1391"]
[TimeControl "300"]
[EndTime "10:52:49 PDT"]
[Termination "Bob2pen won by checkmate"]

1. e4 {[%clk 0:04:55.8]} 1... e5 {[%clk 0:04:59.3]} 2. Nf3 {[%clk 0:04:54.6]}
2... Nc6 {[%clk 0:04:58.1]} 3. Bb5 {[%clk 0:04:53.3]} 3... Bc5 {[%clk
0:04:56.3]} 4. O-O {[%clk 0:04:51.3]} 4... Nf6 {[%clk 0:04:54.8]} 5. Nxe5 {[%clk
0:04:50.2]} 5... Nxe5 {[%clk 0:04:52.8]} 6. d4 {[%clk 0:04:49.2]} 6... Bxd4
{[%clk 0:04:51.6]} 7. Qxd4 {[%clk 0:04:47.8]} 7... Nc6 {[%clk 0:04:48.1]} 8. Qe3
{[%clk 0:04:36.8]} 8... O-O {[%clk 0:04:46.5]} 9. Nc3 {[%clk 0:04:35]} 9... Re8
{[%clk 0:04:41.4]} 10. Re1 {[%clk 0:04:24.5]} 10... a6 {[%clk 0:04:32.5]} 11.
Bc4 {[%clk 0:04:20.6]} 11... b5 {[%clk 0:04:24.5]} 12. Bd5 {[%clk 0:04:17]}
12... Bb7 {[%clk 0:04:18.2]} 13. a3 {[%clk 0:04:09.6]} 13... h6 {[%clk 0:04:10]}
14. Bd2 {[%clk 0:04:05.6]} 14... Na5 {[%clk 0:04:02.9]} 15. Bxb7 {[%clk
0:04:03]} 15... Nxb7 {[%clk 0:04:02.8]} 16. Qg3 {[%clk 0:04:00.7]} 16... Kh8
{[%clk 0:03:59.9]} 17. Rad1 {[%clk 0:03:57.6]} 17... d6 {[%clk 0:03:57.5]} 18.
Qh3 {[%clk 0:03:53.7]} 18... Nc5 {[%clk 0:03:48.6]} 19. f3 {[%clk 0:03:49.9]}
19... Qd7 {[%clk 0:03:33.5]} 20. Qxd7 {[%clk 0:03:47.3]} 20... Nfxd7 {[%clk
0:03:31.6]} 21. Nd5 {[%clk 0:03:46.2]} 21... Rac8 {[%clk 0:03:28.8]} 22. Bc3
{[%clk 0:03:44]} 22... Ne5 {[%clk 0:03:23.3]} 23. Ne3 {[%clk 0:03:37.9]} 23...
Rcd8 {[%clk 0:03:01.9]} 24. Bd4 {[%clk 0:03:36.4]} 24... Kg8 {[%clk 0:02:50]}
25. Nd5 {[%clk 0:03:34.1]} 25... Rd7 {[%clk 0:02:25.7]} 26. b3 {[%clk
0:03:32.2]} 26... Nc6 {[%clk 0:02:15.6]} 27. Bxc5 {[%clk 0:03:27.4]} 27... dxc5
{[%clk 0:01:48.8]} 28. Nf6+ {[%clk 0:03:25.9]} 28... gxf6 {[%clk 0:01:44.1]} 29.
Rxd7 {[%clk 0:03:24.2]} 29... f5 {[%clk 0:01:40]} 30. Rxc7 {[%clk 0:03:20.5]}
30... Nd4 {[%clk 0:01:28.9]} 31. Rxc5 {[%clk 0:03:16.9]} 31... fxe4 {[%clk
0:01:27.2]} 32. Rxe4 {[%clk 0:03:15.5]} 32... Rxe4 {[%clk 0:01:24.9]} 33. fxe4
{[%clk 0:03:14.6]} 33... Ne6 {[%clk 0:01:23.1]} 34. Rc6 {[%clk 0:03:11.5]} 34...
a5 {[%clk 0:01:21.5]} 35. Kf2 {[%clk 0:03:08.7]} 35... Kg7 {[%clk 0:01:17.6]}
36. Rxe6 {[%clk 0:03:05.7]} 36... fxe6 {[%clk 0:01:16.3]} 37. Ke3 {[%clk
0:03:04.9]} 37... Kf6 {[%clk 0:01:15.3]} 38. Kf4 {[%clk 0:03:03.7]} 38... e5+
{[%clk 0:01:13.1]} 39. Ke3 {[%clk 0:03:02.3]} 39... Ke6 {[%clk 0:01:10.9]} 40.
h3 {[%clk 0:03:00.8]} 40... Kd6 {[%clk 0:01:09.5]} 41. g4 {[%clk 0:02:59.8]}
41... Ke6 {[%clk 0:01:06.4]} 42. h4 {[%clk 0:02:58.7]} 42... Kf6 {[%clk
0:01:05.3]} 43. c4 {[%clk 0:02:57.6]} 43... bxc4 {[%clk 0:01:03.4]} 44. bxc4
{[%clk 0:02:56.9]} 44... Ke6 {[%clk 0:01:02.3]} 45. c5 {[%clk 0:02:55.3]} 45...
Kd7 {[%clk 0:00:59.6]} 46. g5 {[%clk 0:02:54.4]} 46... hxg5 {[%clk 0:00:58.2]}
47. hxg5 {[%clk 0:02:53.7]} 47... Kc6 {[%clk 0:00:52.8]} 48. g6 {[%clk 0:02:53]}
48... Kxc5 {[%clk 0:00:52.1]} 49. g7 {[%clk 0:02:52.3]} 49... Kc4 {[%clk
0:00:51.4]} 50. g8=Q+ {[%clk 0:02:50.9]} 50... Kb5 {[%clk 0:00:48]} 51. Qb3+
{[%clk 0:02:49.1]} 51... Kc5 {[%clk 0:00:46.2]} 52. Kd3 {[%clk 0:02:48.2]} 52...
Kc6 {[%clk 0:00:44.9]} 53. Qd5+ {[%clk 0:02:47.3]} 53... Kb6 {[%clk 0:00:43.2]}
54. Kc4 {[%clk 0:02:46.2]} 54... Kc7 {[%clk 0:00:41.9]} 55. Kc5 {[%clk
0:02:44.7]} 55... Kc8 {[%clk 0:00:39.9]} 56. Qf7 {[%clk 0:02:43.1]} 56... Kb8
{[%clk 0:00:38.8]} 57. Kc6 {[%clk 0:02:41.4]} 57... Kc8 {[%clk 0:00:36.8]} 58.
Qc7# {[%clk 0:02:40.1]} 1-0

[Event "Live Chess"]
[Site "Chess.com"]
[Date "2024.06.01"]
[Round "-"]
[White "GEMdzq"]
[Black "RamsayFlayer"]
[Result "1-0"]
[WhiteElo "2321"]
[BlackElo "1960"]
[TimeControl "300"]
[EndTime "10:53:00 PDT"]
[Termination "GEMdzq won by resignation"]

1. e4 {[%clk 0:04:57.9]} 1... e5 {[%clk 0:04:58.7]} 2. d4 {[%clk 0:04:55.7]}
2... exd4 {[%clk 0:04:57.6]} 3. c3 {[%clk 0:04:55.2]} 3... dxc3 {[%clk
0:04:57.5]} 4. Bc4 {[%clk 0:04:54.3]} 4... cxb2 {[%clk 0:04:57.1]} 5. Bxb2
{[%clk 0:04:53.7]} 5... d5 {[%clk 0:04:56.1]} 6. Bxd5 {[%clk 0:04:52.3]} 6...
Nf6 {[%clk 0:04:55.7]} 7. Bxf7+ {[%clk 0:04:50.9]} 7... Kxf7 {[%clk 0:04:55.6]}
8. Qxd8 {[%clk 0:04:49.8]} 8... Bb4+ {[%clk 0:04:55.3]} 9. Qd2 {[%clk
0:04:49.3]} 9... Bxd2+ {[%clk 0:04:54.9]} 10. Nxd2 {[%clk 0:04:49]} 10... c5
{[%clk 0:04:54.4]} 11. Ngf3 {[%clk 0:04:48]} 11... Nc6 {[%clk 0:04:53.7]} 12.
O-O {[%clk 0:04:46.3]} 12... Re8 {[%clk 0:04:46.8]} 13. e5 {[%clk 0:04:45.3]}
13... Ng4 {[%clk 0:04:37.1]} 14. Ne4 {[%clk 0:04:24.9]} 14... Ncxe5 {[%clk
0:04:23.8]} 15. Nd6+ {[%clk 0:04:23.4]} 15... Kf8 {[%clk 0:04:21]} 16. Nxe8
{[%clk 0:04:22.6]} 1-0